Cogmind - Beta 12 @@@ ROGUE MODE // 2023.04.17 @ 14:20:18 Player: Mr Goldstein Result: Destroyed by S-43 Plague with Heavy Machine Gun Performance ------------- Evolutions (9) 4500 Regions Visited (16) 3200 Robots Destroyed (0) 0 Value Destroyed (0) 0 Prototype IDs (2) 40 Alien Tech Used (0) 0 Bonus (9406) 9406 TOTAL SCORE: 17146 Bonus ------- Pacifist 7906 Entered DSFs 1500 Cogmind --------- Core Integrity 0/1600 Matter 193/300 Energy 100/100 System Corruption 0% Temperature Cool (0) Movement Core (50) Location -1/Access Parts ------- > --- POWER (3) -------- (None) > --- PROPULSION (9) --- (None) > --- UTILITY (11) ----- (None) > --- WEAPON (2) ------- (None) > --- INVENTORY (5) ---- System Shield Peak State ------------ > --- POWER ------------ Fission Core Quantum Reactor > --- PROPULSION ------- Improved VTOL Module Improved VTOL Module Field Propulsion Drive Impulse Thruster Impulse Thruster Impulse Thruster Improved Q-thruster > --- UTILITY ---------- (None) > --- WEAPON ----------- (None) > --- INVENTORY -------- System Shield [Rating: 59] Favorites ----------- Power Fission Core Engine Light Ion Engine Power Core Fission Core Reactor Quantum Reactor Propulsion Improved VTOL Module Flight Unit Improved VTOL Module Utility None Weapon None Build | -11 -10 -9 -8 -7 -7 -6 -6 -6 -6 -5 -4 -3 -3 -2 -2 -1 ------- Run | Jun Mat Mat Mat Fac DSF Fac Was Fac DSF Fac Fac Res DSF Res Tes Acc Slots Evolved 18 | . . 2 2 2 . 2 . . . 2 2 2 . 2 . 2 Power 2 | . . . . 1 . . . . . . . 1 . . . . Propulsion 7 | . . 2 1 1 . . . . . 1 1 . . 1 . . Utility 9 | . . . 1 . . 2 . . . 1 1 1 . 1 . 2 Weapon . | . . . . . . . . . . . . . . . . . Parts Attached 23 | . . . . . . 8 . . . . 2 . . . 2 11 Power 5 | . . . . . . 2 . . . . . . . . . 3 Engine 1 | . . . . . . 1 . . . . . . . . . . Core 3 | . . . . . . 1 . . . . . . . . . 2 Reactor 1 | . . . . . . . . . . . . . . . . 1 Propulsion 18 | . . . . . . 6 . . . . 2 . . . 2 8 Treads . | . . . . . . . . . . . . . . . . . Leg . | . . . . . . . . . . . . . . . . . Wheel . | . . . . . . . . . . . . . . . . . Hover . | . . . . . . . . . . . . . . . . . Flight 18 | . . . . . . 6 . . . . 2 . . . 2 8 Utility . | . . . . . . . . . . . . . . . . . Device . | . . . . . . . . . . . . . . . . . Storage . | . . . . . . . . . . . . . . . . . Processor . | . . . . . . . . . . . . . . . . . Hackware . | . . . . . . . . . . . . . . . . . Protection . | . . . . . . . . . . . . . . . . . Artifact . | . . . . . . . . . . . . . . . . . Weapon . | . . . . . . . . . . . . . . . . . Energy Gun . | . . . . . . . . . . . . . . . . . Energy Cannon . | . . . . . . . . . . . . . . . . . Ballistic Gun . | . . . . . . . . . . . . . . . . . Ballistic Cannon . | . . . . . . . . . . . . . . . . . Launcher . | . . . . . . . . . . . . . . . . . Special Weapon . | . . . . . . . . . . . . . . . . . Impact Weapon . | . . . . . . . . . . . . . . . . . Slashing Weapon . | . . . . . . . . . . . . . . . . . Piercing Weapon . | . . . . . . . . . . . . . . . . . Special Melee Weapon . | . . . . . . . . . . . . . . . . . Unidentified Prototypes 2 | . . . . . . 1 . . . . . . . . 1 . Parts Lost 17 | . . . . . . 1 . . . . . . . . 7 9 Power 4 | . . . . . . 1 . . . . . . . . 1 2 Propulsion 13 | . . . . . . . . . . . . . . . 6 7 Utility . | . . . . . . . . . . . . . . . . . Weapon . | . . . . . . . . . . . . . . . . . Highest Loss Streak 9 | . . . . . . 1 . . . . . . . . 6 9 To Critical Strikes . | . . . . . . . . . . . . . . . . . Average Slot Usage (%) 18 | . . . . . . 29 46 . 46 41 36 33 . 30 22 20 Core 2 | . . . . . . . 6 . 6 5 5 4 . 4 2 3 Flight 15 | . . . . . . 25 40 . 40 35 31 28 . 26 18 16 Naked Turns 310 | . 60 47 53 76 28 13 . . . . . . . . . 33 Heaviest Build 30 | . . . . . . 10 10 10 10 10 10 10 10 10 10 30 Greatest Support 47 | 3 3 3 3 3 3 30 30 30 30 30 30 30 30 30 39 47 Greatest Overweight (x) . | . . . . . . . . . . . . . . . . . Average Overweight (x) . | . . . . . . . . . . . . . . . . . Largest Inventory Capacity 5 | 5 5 5 5 5 5 5 5 5 5 5 5 5 5 5 5 5 Average Capacity 5 | 5 5 5 5 5 5 5 5 5 5 5 5 5 5 5 5 5 Most Carried 5 | 1 2 2 2 2 2 5 4 4 4 5 5 5 5 5 5 3 Average Carried 2 | . 1 2 2 2 2 3 4 4 4 4 4 5 5 5 4 . Final Capacity 5 | 5 5 5 5 5 5 5 5 5 5 5 5 5 5 5 5 5 Final Carried 5 | 1 2 2 2 2 2 4 4 4 4 5 5 5 5 5 4 1 Class Distribution -------------------- 57% | Sprinter 42% | Mutant Dominant Class ---------------- Mutant | -10/Materials Mutant | -9/Materials Mutant | -8/Materials Mutant | -7/Factory Mutant | -7/DSF Sprinter | -6/Factory Sprinter | -6/Waste Sprinter | -6/Factory Sprinter | -6/DSF Sprinter | -5/Factory Sprinter | -4/Factory Sprinter | -3/Research Sprinter | -3/DSF Sprinter | -2/Research Sprinter | -2/Testing Sprinter | -1/Access Resources | -11 -10 -9 -8 -7 -7 -6 -6 -6 -6 -5 -4 -3 -3 -2 -2 -1 ----------- Run | Jun Mat Mat Mat Fac DSF Fac Was Fac DSF Fac Fac Res DSF Res Tes Acc Matter Collected 203 | 103 . . . . . . . . . . . . . . 100 . Remotely . | . . . . . . . . . . . . . . . . . Salvage Created . | . . . . . . . . . . . . . . . . . Parts . | . . . . . . . . . . . . . . . . . Haulers Intercepted . | . . . . . . . . . . . . . . . . . Recyclers Shooed . | . . . . . . . . . . . . . . . . . Parts Field Recycled . | . . . . . . . . . . . . . . . . . Retrieved Matter . | . . . . . . . . . . . . . . . . . Parts Self-Destructed . | . . . . . . . . . . . . . . . . . Prevented . | . . . . . . . . . . . . . . . . . Kills | -11 -10 -9 -8 -7 -7 -6 -6 -6 -6 -5 -4 -3 -3 -2 -2 -1 ------- Run | Jun Mat Mat Mat Fac DSF Fac Was Fac DSF Fac Fac Res DSF Res Tes Acc Combat Hostiles Destroyed . | . . . . . . . . . . . . . . . . . Classes Destroyed . | . . . . . . . . . . . . . . . . . Best Kill Streak . | . . . . . . . . . . . . . . . . . Combat Bots Only . | . . . . . . . . . . . . . . . . . Max Kills in Single Turn . | . . . . . . . . . . . . . . . . . Gunslinging . | . . . . . . . . . . . . . . . . . Exploded . | . . . . . . . . . . . . . . . . . Melee . | . . . . . . . . . . . . . . . . . Uniques/NPCs Destroyed . | . . . . . . . . . . . . . . . . . Combat | -11 -10 -9 -8 -7 -7 -6 -6 -6 -6 -5 -4 -3 -3 -2 -2 -1 -------- Run | Jun Mat Mat Mat Fac DSF Fac Was Fac DSF Fac Fac Res DSF Res Tes Acc Damage Taken 4129 | . 186 172 290 37 293 210 . . . 134 . . . 30 507 2270 Core 2958 | . 186 172 290 37 293 70 . . . 45 . . . . 244 1621 Absorbed by Shields 20 | . . . . . . 20 . . . . . . . . . . Core Remaining (%) 75 | 100 25 57 47 . 52 . . . 91 95 100 . 100 . 83 . Volleys Fired . | . . . . . . . . . . . . . . . . . Largest . | . . . . . . . . . . . . . . . . . Hottest . | . . . . . . . . . . . . . . . . . Shots Fired . | . . . . . . . . . . . . . . . . . Gun . | . . . . . . . . . . . . . . . . . Cannon . | . . . . . . . . . . . . . . . . . Launcher . | . . . . . . . . . . . . . . . . . Special . | . . . . . . . . . . . . . . . . . Kinetic . | . . . . . . . . . . . . . . . . . Thermal . | . . . . . . . . . . . . . . . . . Explosive . | . . . . . . . . . . . . . . . . . Electromagnetic . | . . . . . . . . . . . . . . . . . Robot Hit Streak . | . . . . . . . . . . . . . . . . . Robot Miss Streak . | . . . . . . . . . . . . . . . . . Penetration Max . | . . . . . . . . . . . . . . . . . Secondary Targets . | . . . . . . . . . . . . . . . . . Shots Hit Robots . | . . . . . . . . . . . . . . . . . Core Hits . | . . . . . . . . . . . . . . . . . Critical Kills . | . . . . . . . . . . . . . . . . . Critical Parts Destroyed . | . . . . . . . . . . . . . . . . . Critical Strikes . | . . . . . . . . . . . . . . . . . Melee Attacks . | . . . . . . . . . . . . . . . . . Impact . | . . . . . . . . . . . . . . . . . Slashing . | . . . . . . . . . . . . . . . . . Piercing . | . . . . . . . . . . . . . . . . . Sneak Attacks . | . . . . . . . . . . . . . . . . . Combat Hostiles . | . . . . . . . . . . . . . . . . . Follow-up Attacks . | . . . . . . . . . . . . . . . . . Damage Inflicted 35 | . . 4 8 . . . . . . . . . . . . 23 Guns . | . . . . . . . . . . . . . . . . . Cannons . | . . . . . . . . . . . . . . . . . Explosions . | . . . . . . . . . . . . . . . . . Melee . | . . . . . . . . . . . . . . . . . Ramming 35 | . . 4 8 . . . . . . . . . . . . 23 Kinetic . | . . . . . . . . . . . . . . . . . Thermal . | . . . . . . . . . . . . . . . . . Explosive . | . . . . . . . . . . . . . . . . . Electromagnetic . | . . . . . . . . . . . . . . . . . Impact . | . . . . . . . . . . . . . . . . . Slashing . | . . . . . . . . . . . . . . . . . Piercing . | . . . . . . . . . . . . . . . . . Highest Corruption 1 | . . . . . . . . . . 1 . . . . . . Average Corruption 1 | . . . . . . . . . . 1 . . . . . . Corruption Purged . | . . . . . . . . . . . . . . . . . Corruption Blocked . | . . . . . . . . . . . . . . . . . Overload Shots . | . . . . . . . . . . . . . . . . . Overflow Damage . | . . . . . . . . . . . . . . . . . Projectiles . | . . . . . . . . . . . . . . . . . Explosions . | . . . . . . . . . . . . . . . . . Melee . | . . . . . . . . . . . . . . . . . Knockbacks . | . . . . . . . . . . . . . . . . . Impact . | . . . . . . . . . . . . . . . . . Kinetic . | . . . . . . . . . . . . . . . . . Secondary . | . . . . . . . . . . . . . . . . . Self-Inflicted Damage 14 | . . . 4 . . . . . . . . . . . . 10 Shots . | . . . . . . . . . . . . . . . . . Rammed 10 | . . 4 2 . . . . . . . . . . . . 4 Targets Rammed 10 | . . 4 2 . . . . . . . . . . . . 4 Kicked . | . . . . . . . . . . . . . . . . . Crushed . | . . . . . . . . . . . . . . . . . Highest Temperature 332 | . . . . . . 43 113 14 . 133 22 4 . 5 4 332 Average Temperature 83 | . . . . . . 22 59 7 . 71 12 3 . 3 4 155 Received Heat Transfer 503 | . 51 87 27 12 . 65 . . . 9 . . . 9 45 198 Siege Activations . | . . . . . . . . . . . . . . . . . Robots Corrupted . | . . . . . . . . . . . . . . . . . Combat Hostiles . | . . . . . . . . . . . . . . . . . Parts Fried . | . . . . . . . . . . . . . . . . . Impact Corruptions . | . . . . . . . . . . . . . . . . . Robots Melted . | . . . . . . . . . . . . . . . . . Combat Hostiles . | . . . . . . . . . . . . . . . . . Parts Melted . | . . . . . . . . . . . . . . . . . Heat Transferred . | . . . . . . . . . . . . . . . . . Parts Sabotaged . | . . . . . . . . . . . . . . . . . Parts Stolen . | . . . . . . . . . . . . . . . . . Parts Stripped . | . . . . . . . . . . . . . . . . . Power Chain Reactions . | . . . . . . . . . . . . . . . . . Missiles Intercepted . | . . . . . . . . . . . . . . . . . Alert | -11 -10 -9 -8 -7 -7 -6 -6 -6 -6 -5 -4 -3 -3 -2 -2 -1 ------- Run | Jun Mat Mat Mat Fac DSF Fac Was Fac DSF Fac Fac Res DSF Res Tes Acc Peak Influence 410 | . 75 76 46 50 35 38 58 40 28 136 81 42 31 32 105 410 Initial 66 | . . 31 31 20 35 18 13 40 28 14 66 42 31 17 18 50 Average 67 | . 22 62 36 33 35 22 35 40 28 60 67 42 31 20 50 147 Maximum Alert Level 2 | . . . . . . . . . . . . . . . . 2 Low Security (%) 95 | 100 100 100 100 100 100 100 100 100 100 100 100 100 100 100 100 84 Level 1 3 | . . . . . . . . . . . . . . . . 13 Level 2 . | . . . . . . . . . . . . . . . . 2 Level 3 . | . . . . . . . . . . . . . . . . . Level 4 . | . . . . . . . . . . . . . . . . . Level 5 . | . . . . . . . . . . . . . . . . . High Security . | . . . . . . . . . . . . . . . . . Max Security . | . . . . . . . . . . . . . . . . . Squads Dispatched 13 | . 1 1 2 1 1 . . . . 1 1 . . . 3 2 Investigation 4 | . . . . . . . . . . 1 1 . . . 2 . Extermination . | . . . . . . . . . . . . . . . . . Reinforcement 9 | . 1 1 2 1 1 . . . . . . . . . 1 2 Assault . | . . . . . . . . . . . . . . . . . Garrison . | . . . . . . . . . . . . . . . . . Intercept . | . . . . . . . . . . . . . . . . . Searches Triggered . | . . . . . . . . . . . . . . . . . Construction Impeded . | . . . . . . . . . . . . . . . . . Haulers Reinforced 1 | . . . . . . . . . . . . . . . . 1 Active Scanning Responses . | . . . . . . . . . . . . . . . . . Cargo Convoy Interrupts . | . . . . . . . . . . . . . . . . . Stealth | -11 -10 -9 -8 -7 -7 -6 -6 -6 -6 -5 -4 -3 -3 -2 -2 -1 --------- Run | Jun Mat Mat Mat Fac DSF Fac Was Fac DSF Fac Fac Res DSF Res Tes Acc Distress Signals 3 | . 1 . . . . . . . . . . . . . . 2 Communications Jammed . | . . . . . . . . . . . . . . . . . Distress Signals . | . . . . . . . . . . . . . . . . . Times Spotted 124 | . 10 7 10 2 3 8 6 . 1 8 3 . . 1 21 44 Peak Tracking Total 24 | . 8 7 10 2 3 6 6 . 1 7 . . 1 1 17 24 Tactical Retreats 13 | . 1 . . . . 1 . . . 2 . . . . 2 7 Traps | -11 -10 -9 -8 -7 -7 -6 -6 -6 -6 -5 -4 -3 -3 -2 -2 -1 ------- Run | Jun Mat Mat Mat Fac DSF Fac Was Fac DSF Fac Fac Res DSF Res Tes Acc Traps Triggered 3 | . . . 1 . . 2 . . . . . . . . . . Indirectly . | . . . . . . . . . . . . . . . . . Trap Hack Attempts . | . . . . . . . . . . . . . . . . . Triggered . | . . . . . . . . . . . . . . . . . Disarmed . | . . . . . . . . . . . . . . . . . Reprogrammed . | . . . . . . . . . . . . . . . . . Reused . | . . . . . . . . . . . . . . . . . Traps Extracted . | . . . . . . . . . . . . . . . . . Installed . | . . . . . . . . . . . . . . . . . Triggered . | . . . . . . . . . . . . . . . . . Machines | -11 -10 -9 -8 -7 -7 -6 -6 -6 -6 -5 -4 -3 -3 -2 -2 -1 ---------- Run | Jun Mat Mat Mat Fac DSF Fac Was Fac DSF Fac Fac Res DSF Res Tes Acc Machines Disabled . | . . . . . . . . . . . . . . . . . Max in Single Turn . | . . . . . . . . . . . . . . . . . Machines Repaired . | . . . . . . . . . . . . . . . . . Machines Sabotaged . | . . . . . . . . . . . . . . . . . Overloaded Fab Kills . | . . . . . . . . . . . . . . . . . Hacking | -11 -10 -9 -8 -7 -7 -6 -6 -6 -6 -5 -4 -3 -3 -2 -2 -1 --------- Run | Jun Mat Mat Mat Fac DSF Fac Was Fac DSF Fac Fac Res DSF Res Tes Acc Machines Accessed 11 | . . . . 1 . 1 . 1 . 3 2 1 . . 2 . Terminals 11 | . . . . 1 . 1 . 1 . 3 2 1 . . 2 . Fabricators . | . . . . . . . . . . . . . . . . . Repair Stations . | . . . . . . . . . . . . . . . . . Recycling Units . | . . . . . . . . . . . . . . . . . Scanalyzers . | . . . . . . . . . . . . . . . . . Garrison Access . | . . . . . . . . . . . . . . . . . Total Hacks 23 | . . . . 1 . 1 . 1 . 8 4 1 . . 7 . Successful 9 | . . . . 1 . . . 1 . 3 . 1 . . 3 . Failed 14 | . . . . . . 1 . . . 5 4 . . . 4 . Catastrophic 5 | . . . . . . 1 . . . 1 2 . . . 1 . Database Lockouts . | . . . . . . . . . . . . . . . . . Manual 4 | . . . . . . 1 . . . 3 . . . . . . Terminals 23 | . . . . 1 . 1 . 1 . 8 4 1 . . 7 . Fabricators . | . . . . . . . . . . . . . . . . . Repair Stations . | . . . . . . . . . . . . . . . . . Recycling Units . | . . . . . . . . . . . . . . . . . Scanalyzers . | . . . . . . . . . . . . . . . . . Garrison Access . | . . . . . . . . . . . . . . . . . Terminal Hacks 7 | . . . . 1 . . . 1 . 1 . 1 . . 3 . Open DSF 3 | . . . . 1 . . . 1 . . . 1 . . . . Level Access Points 1 | . . . . . . . . . . . . . . . 1 . Zone Layout 3 | . . . . . . . . . . 1 . . . . 2 . Fabricator Hacks . | . . . . . . . . . . . . . . . . . Repair Station Hacks . | . . . . . . . . . . . . . . . . . Recycling Unit Hacks . | . . . . . . . . . . . . . . . . . Scanalyzer . | . . . . . . . . . . . . . . . . . Garrison Access Hacks . | . . . . . . . . . . . . . . . . . Unauthorized Hacks 2 | . . . . . . . . . . 2 . . . . . . Terminals 2 | . . . . . . . . . . 2 . . . . . . Botnet 2 | . . . . . . . . . . 2 . . . . . . Fabricators . | . . . . . . . . . . . . . . . . . Repair Stations . | . . . . . . . . . . . . . . . . . Recycling Units . | . . . . . . . . . . . . . . . . . Scanalyzers . | . . . . . . . . . . . . . . . . . Garrison Access . | . . . . . . . . . . . . . . . . . Data Cores Recovered . | . . . . . . . . . . . . . . . . . Used . | . . . . . . . . . . . . . . . . . Hacking Detections 9 | . . . . . . 1 . 1 . 3 2 . . . 2 . Full Trace Events 4 | . . . . . . . . . . 1 1 . . . 2 . Feedback Events . | . . . . . . . . . . . . . . . . . Feedback Blocked . | . . . . . . . . . . . . . . . . . Robot Schematics Acquired . | . . . . . . . . . . . . . . . . . Robots Built . | . . . . . . . . . . . . . . . . . Authchips . | . . . . . . . . . . . . . . . . . Time . | . . . . . . . . . . . . . . . . . Total Robot Build Rating . | . . . . . . . . . . . . . . . . . Part Schematics Acquired . | . . . . . . . . . . . . . . . . . Parts Built . | . . . . . . . . . . . . . . . . . Authchips . | . . . . . . . . . . . . . . . . . Time . | . . . . . . . . . . . . . . . . . Total Part Build Rating . | . . . . . . . . . . . . . . . . . Parts Repaired . | . . . . . . . . . . . . . . . . . Time . | . . . . . . . . . . . . . . . . . Parts Recycled . | . . . . . . . . . . . . . . . . . Recycled Matter . | . . . . . . . . . . . . . . . . . Retrieved Matter . | . . . . . . . . . . . . . . . . . Retrieved Components . | . . . . . . . . . . . . . . . . . Parts Scanalyzed . | . . . . . . . . . . . . . . . . . Part Schematics Acquired . | . . . . . . . . . . . . . . . . . Parts Damaged . | . . . . . . . . . . . . . . . . . Bothacking | -11 -10 -9 -8 -7 -7 -6 -6 -6 -6 -5 -4 -3 -3 -2 -2 -1 ------------ Run | Jun Mat Mat Mat Fac DSF Fac Was Fac DSF Fac Fac Res DSF Res Tes Acc Used RIF Installer . | . . . . . . . . . . . . . . . . . Robots Hacked . | . . . . . . . . . . . . . . . . . Non-combat . | . . . . . . . . . . . . . . . . . Combat . | . . . . . . . . . . . . . . . . . Robot Hacks Applied . | . . . . . . . . . . . . . . . . . Relay Couplers Released . | . . . . . . . . . . . . . . . . . Fabnet Peak Effective % . | . . . . . . . . . . . . . . . . . Robots Rewired . | . . . . . . . . . . . . . . . . . Allies Hacked . | . . . . . . . . . . . . . . . . . Hacks Repelled . | . . . . . . . . . . . . . . . . . Allies | -11 -10 -9 -8 -7 -7 -6 -6 -6 -6 -5 -4 -3 -3 -2 -2 -1 -------- Run | Jun Mat Mat Mat Fac DSF Fac Was Fac DSF Fac Fac Res DSF Res Tes Acc Total Allies . | . . . . . . . . . . . . . . . . . Largest Group . | . . . . . . . . . . . . . . . . . Highest-Rated Group . | . . . . . . . . . . . . . . . . . Highest-Rated Ally . | . . . . . . . . . . . . . . . . . Total Orders . | . . . . . . . . . . . . . . . . . Ally Attacks . | . . . . . . . . . . . . . . . . . Total Damage . | . . . . . . . . . . . . . . . . . Kills . | . . . . . . . . . . . . . . . . . Allies Corrupted . | . . . . . . . . . . . . . . . . . Allies Melted . | . . . . . . . . . . . . . . . . . Intel | -11 -10 -9 -8 -7 -7 -6 -6 -6 -6 -5 -4 -3 -3 -2 -2 -1 ------- Run | Jun Mat Mat Mat Fac DSF Fac Was Fac DSF Fac Fac Res DSF Res Tes Acc Robot Analysis Total . | . . . . . . . . . . . . . . . . . Derelict Logs Recovered . | . . . . . . . . . . . . . . . . . Drone Launches . | . . . . . . . . . . . . . . . . . Drone Recoveries . | . . . . . . . . . . . . . . . . . Exploration | -11 -10 -9 -8 -7 -7 -6 -6 -6 -6 -5 -4 -3 -3 -2 -2 -1 ------------- Run | Jun Mat Mat Mat Fac DSF Fac Was Fac DSF Fac Fac Res DSF Res Tes Acc Turns Passed 773 | 12 60 47 53 76 28 76 18 3 13 85 26 5 6 5 66 194 Spaces Moved 2279 | 23 118 85 101 152 55 196 90 14 63 368 113 22 30 23 262 564 Core 616 | 23 118 85 101 152 55 25 . . . . . . . . . 57 Treads . | . . . . . . . . . . . . . . . . . Legs . | . . . . . . . . . . . . . . . . . Wheels . | . . . . . . . . . . . . . . . . . Hover . | . . . . . . . . . . . . . . . . . Flight 1663 | . . . . . . 171 90 14 63 368 113 22 30 23 262 507 Fastest Speed 17 | 50 50 50 50 50 50 20 20 20 20 20 20 20 20 20 17 21 Average Speed 30 | 50 50 50 50 50 50 28 20 20 20 20 20 20 20 20 23 28 Slowest Speed 50 | 50 50 50 50 50 50 50 20 20 20 20 20 20 20 20 35 50 Overloaded Moves . | . . . . . . . . . . . . . . . . . Propulsion Burnouts . | . . . . . . . . . . . . . . . . . Robots Hopped 43 | . . . . . . 2 . . . 7 2 . . . 16 16 Cave-ins Triggered . | . . . . . . . . . . . . . . . . . Exploration Rate (%) 27 | 3 50 16 15 5 80 10 80 1 69 13 4 1 41 1 49 22 Regions Visited 16 Branch Regions 1 Pre-discovered Areas . | . . . . . . . . . . . . . . . . . Known Exits Taken 4 | . . . . 1 . . . 1 . . . 1 . . 1 . Unknown Exits Taken 7 | 1 1 1 1 . . . . . . 1 1 . . 1 . . Scrap Searched . | . . . . . . . . . . . . . . . . . Spaces Dug . | . . . . . . . . . . . . . . . . . Terrain Destroyed . | . . . . . . . . . . . . . . . . . Melee . | . . . . . . . . . . . . . . . . . Projectile . | . . . . . . . . . . . . . . . . . AOE . | . . . . . . . . . . . . . . . . . Terrain Rammed . | . . . . . . . . . . . . . . . . . Walls Destroyed . | . . . . . . . . . . . . . . . . . Machines Disabled . | . . . . . . . . . . . . . . . . . Actions | -11 -10 -9 -8 -7 -7 -6 -6 -6 -6 -5 -4 -3 -3 -2 -2 -1 --------- Run | Jun Mat Mat Mat Fac DSF Fac Was Fac DSF Fac Fac Res DSF Res Tes Acc Total 2296 | 23 118 88 102 151 54 212 89 13 62 371 114 21 29 22 249 578 Wait 22 | . . . . . . 1 . . . 10 . . . . . 11 Move 2185 | 22 117 84 100 151 54 192 89 13 62 353 110 21 29 22 233 533 Hop 36 | . . . . . . 2 . . . 7 . . . . 12 15 Pick Up 9 | 1 1 . . . . 5 . . . 1 . . . . . 1 Fast Attach 12 | . . . . . . 6 . . . . . . . . 1 5 Attach 11 | . . . . . . 2 . . . . 2 . . . 1 6 Detach 5 | . . . . . . . . . . . 2 . . . 1 2 Swap . | . . . . . . . . . . . . . . . . . Drop 3 | . . . . . . 1 . . . . . . . . 1 1 Fire . | . . . . . . . . . . . . . . . . . Melee . | . . . . . . . . . . . . . . . . . Ram 10 | . . 4 2 . . . . . . . . . . . . 4 Kick . | . . . . . . . . . . . . . . . . . Crush . | . . . . . . . . . . . . . . . . . Escape Stasis 3 | . . . . . . 3 . . . . . . . . . . Rewire . | . . . . . . . . . . . . . . . . . Trap . | . . . . . . . . . . . . . . . . . Miscellaneous . | . . . . . . . . . . . . . . . . . Route ------- -11/Junkyard -10/Materials (discovered 2 exits: [*Mat] / [*Min]) -9/Materials (discovered 2 exits: [*Mat] / [*Min]) -8/Materials -7/Factory -7/DSF -6/Factory -6/Waste -6/Factory -6/DSF -5/Factory -4/Factory -3/Research -3/DSF -2/Research -2/Testing -1/Access History --------- Turn | Location | Event 2 | -11/Junkyard | Discovered new exit (range 16) 13 | -11/Junkyard | Entered Materials 45 | -10/Materials | Discovered new exit (range 9) 67 | -10/Materials | Core integrity fell below 50% 69 | -10/Materials | Discovered new exit (range 10) 73 | -10/Materials | Entered another Materials area 73 | -9/Materials | Evolved 2 slots: Propulsion x2 91 | -9/Materials | Discovered new exit (range 9) 111 | -9/Materials | Discovered new exit (range 16) 120 | -9/Materials | Entered another Materials area 120 | -8/Materials | Evolved 2 slots: Propulsion x1, Utility x1 170 | -8/Materials | Discovered new exit (range 6) 173 | -8/Materials | Core integrity fell below 50% 173 | -8/Materials | Entered Factory 173 | -7/Factory | Evolved 2 slots: Power x1, Propulsion x1 249 | -7/Factory | Identified exit to DSF 249 | -7/Factory | Entered DSF 262 | -7/DSF | Additional patrols routed to DSF 270 | -7/DSF | Discovered new exit (range 15) 277 | -7/DSF | Entered Factory 277 | -6/Factory | Evolved 2 slots: Utility x2 340 | -6/Factory | Spotted B-75 Beast 353 | -6/Factory | Sucked down chute 353 | -6/Factory | Entered Waste 354 | -6/Waste | Spotted C-40 Crusher 355 | -6/Waste | Spotted C-40 Crusher 358 | -6/Waste | Spotted C-40 Crusher 360 | -6/Waste | Spotted C-40 Crusher 365 | -6/Waste | Spotted C-40 Crusher 366 | -6/Waste | Spotted C-40 Crusher 366 | -6/Waste | Discovered new exit (range 14) 371 | -6/Waste | Entered Factory 374 | -6/Factory | Identified exit to DSF 374 | -6/Factory | Entered DSF 384 | -6/DSF | Discovered new exit (range 11) 387 | -6/DSF | Entered Factory 387 | -5/Factory | Evolved 2 slots: Propulsion x1, Utility x1 469 | -5/Factory | Discovered new exit (range 16) 472 | -5/Factory | Entered another Factory area 472 | -4/Factory | Evolved 2 slots: Propulsion x1, Utility x1 495 | -4/Factory | Discovered new exit (range 15) 498 | -4/Factory | Entered Research 498 | -3/Research | Evolved 2 slots: Power x1, Utility x1 503 | -3/Research | Identified exit to DSF 503 | -3/Research | Entered DSF 507 | -3/DSF | Discovered new exit (range 12) 509 | -3/DSF | Entered Research 509 | -2/Research | Evolved 2 slots: Propulsion x1, Utility x1 512 | -2/Research | Discovered new exit (range 8) 514 | -2/Research | Entered Testing 541 | -2/Testing | Identified exit to Access 580 | -2/Testing | Entered Access 580 | -1/Access | Evolved 2 slots: Utility x2 604 | -1/Access | Build established: Sprinter 607 | -1/Access | Lost 6 parts (1p5n) 746 | -1/Access | Core integrity fell below 50% 764 | -1/Access | Core integrity fell below 20% 772 | -1/Access | Lost 9 parts (2p7n) 774 | -1/Access | Destroyed by S-43 Plague with Heavy Machine Gun Last Messages --------------- 00727_ Penetrated by Slug. 00729_ Slug penetrates Wall. 00729_ Penetrated by Slug. 00738_ Imp. VTOL Module destroyed. 00738_ Slug penetrates Wall. 00738_ Penetrated by Slug. 00741_ Imp. VTOL Module destroyed. 00741_ Penetrated by Slug. 00742_ Slug penetrates Wall. 00745_ Penetrated by Slug. 00749_ Slug penetrates H-88 Terminator. 00759_ Slug penetrates Wall. 00759_ Slammed into H-88 Terminator. 00760_ Slug penetrates Wall. 00763_ Slammed into G-73 Enforcer. 00764_ Penetrated by Slug. 00764_ Slammed into G-73 Enforcer. 00767_ Slammed into A-15 Conveyor. 00768_ A-15 Conveyor calls for reinforcements. 00768_ ALERT: Hostile activity reported, dispatching reinforcements to area. Map ----- +----------------------------------------------------+ | ?????????????????????????????????????????????????? | | ?????????????????????????????????????????????????? | | ?????????????????????????????????????????????????? | | ?????????????????????????????????????????????????? | | ?????????????????????????????????????????????????? | | ?????????????????????????????????????????????????? | | ?????????????????????????????????????????????????? | | ?????????????????????????????????????????????????? | | ?????????????????????????????????????????????????? | | ?????????????????????????????????????????????????? | | ???????????????????????????????? ??????????????? | | ???????????????????????????????? #?????????????? | | ???????????????????????????????? #?????????????? | | ??????????????????????????????? #?????????????? | | ???????????????????????????????# #?????????????? | | ???????????????????????????????# #?????????????? | | ???????????????????????????????# #??######?????? | | ???????????????????????????????# #?? ??????? | | ???????????????????????????????# #? ???????? | | ???????????????????????????????# # ?????????? | | ???????????????????????????????# # ??????????? | | ???????????????????????????????# + ????????????? | | ???????????????????????????????# #?????????????? | | ????????????+#########+#########u #?????????????? | | ?????????? kk +?????????????? | | ?????????? @ #+#???????????? | | ?????????? s #???????????? | | ?????????????##### ######## #???????????? | | ??????????????????????????# s #???????????? | | ??????????????????????????+ A ss#???????????? | | ??????????????????????????##########s#???????????? | | ???????????????????????????????????# #???????????? | | ???????????????????????????????????# #???????????? | | ???????????????????????????????????# #????????#+## | | ?????????????????????????????#######/######???# | | ?????????????????????????????# #???# | | ?????????????????????????????# ##### | | ?????????????????????????????# / | | ?????????????????????????????#" "" ##### | | ?????????????????????????????#" "" #???# | | ?????????????????????????????#" """""" #???# | | ?????????????????????????????#T """""" #???# | | ?????????????????????????????#" "" #???# | | ?????????????????????????????#" "" #???# | | ?????????????????????????????#" #???# | | ?????????????????????????????# #???# | | ?????????????????????????????# ??? #???# | | ?????????????????????????????##????#+########## | | ????????????????????????????????????? | | ???????????????????????????????????? | +----------------------------------------------------+ Best States ------------- Heat Dissipation 52 Energy Generation 38 Energy Capacity 560 Matter Stores 243 Matter Capacity 300 Sight Range 16 Terrain Scan Density 10 Evasion (%) 66 Item Schematics ----------------- None Robot Schematics ------------------ None Fabricated ------------ Nothing Alien Tech Used ----------------- None Achievements -------------- None Challenges ------------ None Game ------ Seed ProtonMiniComputer Manual? 0 Play Time 00:17:08 Cumulative 118.8 hours Start 2023.04.17 @ 14:03:09 End 2023.04.17 @ 14:20:18 Sessions 1 Manual Loads 0 Difficulty Rogue Special Mode None Game No. 339 Rogue 339 Adventurer 0 Explorer 0 Win Type - Total 4 Types 4/0/0/0/0/0/0/0/0 Lore% 59 Gallery% 61 Achievement% 53 Wizard Run 0 Options --------- ASCII 0 Keyboard 0 Movement Numpad Keybinds 0 Fullscreen 1 Font 12/Smallcaps Map View 83x54 Tactical HUD 1 Map Filters NONE Filters NONE Steam 1 RUN: 563ae87f-03d4-48bf-8811-e2f041f52066